[Event "*** Titled Tuesday Blitz"]
[Site "Chess.com"]
[Date "2019.11.05"]
[Round "1"]
[White "imdarealist"]
[Black "RitvarsReimanis"]
[Result "0-1"]
[WhiteElo "2231"]
[BlackElo "2606"]
[TimeControl "180+2"]
[EndTime "13:09:29 PST"]
[Termination "RitvarsReimanis won by resignation"]

1. d4 {[%clk 0:03:01.9]} 1... Nf6 {[%clk 0:02:58.2]} 2. Bf4 {[%clk 0:02:59.3]}
2... e6 {[%clk 0:02:55.5]} 3. e3 {[%clk 0:02:58.2]} 3... d5 {[%clk 0:02:50.9]}
4. c3 {[%clk 0:02:56.1]} 4... c5 {[%clk 0:02:50.8]} 5. Nd2 {[%clk 0:02:56.4]}
5... Nc6 {[%clk 0:02:40.7]} 6. Bd3 {[%clk 0:02:54.9]} 6... Bd6 {[%clk
0:02:40.1]} 7. Bxd6 {[%clk 0:02:55.9]} 7... Qxd6 {[%clk 0:02:42]} 8. f4 {[%clk
0:02:57]} 8... cxd4 {[%clk 0:02:42.4]} 9. cxd4 {[%clk 0:02:58.9]} 9... Nb4
{[%clk 0:02:30.7]} 10. Qb3 {[%clk 0:01:56.3]} 10... Bd7 {[%clk 0:02:21.5]} 11.
Ngf3 {[%clk 0:01:54.8]} 11... a6 {[%clk 0:02:15.4]} 12. a3 {[%clk 0:01:35.2]}
12... Nxd3+ {[%clk 0:02:15.4]} 13. Qxd3 {[%clk 0:01:36.5]} 13... Bb5 {[%clk
0:02:14]} 14. Qc3 {[%clk 0:01:28.2]} 14... a5 {[%clk 0:02:01.8]} 15. Rc1 {[%clk
0:01:15.7]} 15... O-O {[%clk 0:02:01.1]} 16. Ne5 {[%clk 0:01:14]} 16... Nd7
{[%clk 0:01:38.2]} 17. Ndf3 {[%clk 0:00:50.8]} 17... f6 {[%clk 0:01:26.4]} 18.
Nxd7 {[%clk 0:00:46.8]} 18... Qxd7 {[%clk 0:01:28.3]} 19. Qc7 {[%clk 0:00:45.2]}
19... Qxc7 {[%clk 0:01:14.5]} 20. Rxc7 {[%clk 0:00:43.9]} 20... Rac8 {[%clk
0:01:14.1]} 21. Rxc8 {[%clk 0:00:36.3]} 21... Rxc8 {[%clk 0:01:16]} 22. Kd2
{[%clk 0:00:37.6]} 22... Kf7 {[%clk 0:01:08.7]} 23. Rc1 {[%clk 0:00:32.3]} 23...
Bc6 {[%clk 0:01:10.2]} 24. Ne1 {[%clk 0:00:31.5]} 24... h6 {[%clk 0:01:07.1]}
25. Nd3 {[%clk 0:00:32.5]} 25... g5 {[%clk 0:01:08.1]} 26. g3 {[%clk 0:00:32.6]}
26... Rg8 {[%clk 0:01:08.5]} 27. Nc5 {[%clk 0:00:29.8]} 27... Ke7 {[%clk
0:01:08.3]} 28. Nb3 {[%clk 0:00:30.5]} 28... Ra8 {[%clk 0:01:06.6]} 29. Rc5
{[%clk 0:00:31]} 29... a4 {[%clk 0:01:02.4]} 30. Nc1 {[%clk 0:00:32.5]} 30...
Kd6 {[%clk 0:01:01.9]} 31. Nd3 {[%clk 0:00:33.3]} 31... b6 {[%clk 0:01:03.4]}
32. Rc3 {[%clk 0:00:33]} 32... Rg8 {[%clk 0:01:01.4]} 33. Nb4 {[%clk 0:00:33.4]}
33... Bd7 {[%clk 0:01:02.9]} 34. Nd3 {[%clk 0:00:31.8]} 34... h5 {[%clk
0:01:04]} 35. Ke2 {[%clk 0:00:32.4]} 35... h4 {[%clk 0:01:05.3]} 36. Kf2 {[%clk
0:00:33.4]} 36... hxg3+ {[%clk 0:01:06.4]} 37. hxg3 {[%clk 0:00:34.1]} 37...
gxf4 {[%clk 0:01:08]} 38. exf4 {[%clk 0:00:35.5]} 38... Rh8 {[%clk 0:01:08]} 39.
Kg2 {[%clk 0:00:35.6]} 39... Bb5 {[%clk 0:01:06.5]} 40. Nf2 {[%clk 0:00:34.1]}
40... Rg8 {[%clk 0:01:03.4]} 41. Rc1 {[%clk 0:00:32.2]} 41... Bc4 {[%clk
0:01:02.9]} 42. Rc3 {[%clk 0:00:32.5]} 42... Rb8 {[%clk 0:01:00.2]} 43. Nd3
{[%clk 0:00:33.4]} 43... Rh8 {[%clk 0:00:54.7]} 44. Nf2 {[%clk 0:00:22.5]} 44...
Ke7 {[%clk 0:00:54.8]} 45. Ng4 {[%clk 0:00:22.4]} 45... b5 {[%clk 0:00:45.5]}
46. Ne3 {[%clk 0:00:23.3]} 46... Kd6 {[%clk 0:00:44.7]} 47. Nxc4+ {[%clk
0:00:22.2]} 47... bxc4 {[%clk 0:00:46.6]} 48. Kf2 {[%clk 0:00:22.4]} 48... Rb8
{[%clk 0:00:46.2]} 49. Rc2 {[%clk 0:00:23.6]} 49... Rb3 {[%clk 0:00:43.7]} 50.
Rd2 {[%clk 0:00:24.2]} 50... Ke7 {[%clk 0:00:40.5]} 51. g4 {[%clk 0:00:23.7]}
51... Kf7 {[%clk 0:00:39.8]} 52. Kg2 {[%clk 0:00:24.4]} 52... Kg6 {[%clk
0:00:39.8]} 53. Kf2 {[%clk 0:00:25.6]} 53... f5 {[%clk 0:00:33.9]} 54. g5 {[%clk
0:00:25.9]} 54... Kh5 {[%clk 0:00:34.9]} 55. Re2 {[%clk 0:00:26.7]} 55... Kg4
{[%clk 0:00:35]} 56. Rxe6 {[%clk 0:00:27.2]} 56... Kxf4 {[%clk 0:00:35.2]} 57.
g6 {[%clk 0:00:28.6]} 57... Rxb2+ {[%clk 0:00:35.8]} 58. Ke1 {[%clk 0:00:29.2]}
58... Rg2 {[%clk 0:00:35.1]} 59. Re5 {[%clk 0:00:28.6]} 59... Rxg6 {[%clk
0:00:34.3]} 60. Rxd5 {[%clk 0:00:29.8]} 60... Rg3 {[%clk 0:00:35.1]} 61. Rc5
{[%clk 0:00:28.2]} 61... Rxa3 {[%clk 0:00:35.6]} 62. Rxc4 {[%clk 0:00:28.9]}
62... Ke3 {[%clk 0:00:37.2]} 63. d5 {[%clk 0:00:29.3]} 63... Ra1+ {[%clk
0:00:37.7]} 0-1

[Event "*** Titled Tuesday Blitz"]
[Site "Chess.com"]
[Date "2019.11.05"]
[Round "1"]
[White "AyelenChess"]
[Black "GMOratovsky"]
[Result "1-0"]
[WhiteElo "2030"]
[BlackElo "2524"]
[TimeControl "180+2"]
[EndTime "13:09:29 PST"]
[Termination "AyelenChess won by checkmate"]

1. e4 {[%clk 0:03:00.7]} 1... d6 {[%clk 0:03:00.6]} 2. d4 {[%clk 0:03:01.7]}
2... Nf6 {[%clk 0:03:01.7]} 3. Nc3 {[%clk 0:03:03.6]} 3... e5 {[%clk 0:03:02.5]}
4. Nf3 {[%clk 0:03:04.4]} 4... Nbd7 {[%clk 0:03:01.4]} 5. g4 {[%clk 0:03:05]}
5... Nxg4 {[%clk 0:03:01.5]} 6. Rg1 {[%clk 0:03:05.4]} 6... Ngf6 {[%clk
0:03:02.5]} 7. Bc4 {[%clk 0:03:05.8]} 7... h6 {[%clk 0:03:03.9]} 8. Be3 {[%clk
0:03:03.9]} 8... c6 {[%clk 0:03:04.3]} 9. Qd2 {[%clk 0:02:56.5]} 9... b5 {[%clk
0:03:04.3]} 10. Bd3 {[%clk 0:02:30.5]} 10... Qc7 {[%clk 0:03:00.6]} 11. Ne2
{[%clk 0:02:27.7]} 11... a6 {[%clk 0:02:46.4]} 12. a4 {[%clk 0:02:23.5]} 12...
Rb8 {[%clk 0:02:45.5]} 13. axb5 {[%clk 0:02:23.8]} 13... axb5 {[%clk 0:02:45.7]}
14. dxe5 {[%clk 0:02:22.9]} 14... dxe5 {[%clk 0:02:44]} 15. Ra7 {[%clk 0:02:23]}
15... Rb7 {[%clk 0:02:43.4]} 16. Ra8 {[%clk 0:02:24]} 16... Rb8 {[%clk
0:02:38.4]} 17. Ra7 {[%clk 0:02:24.3]} 17... Bb7 {[%clk 0:02:35.9]} 18. Nh4
{[%clk 0:02:14.3]} 18... g6 {[%clk 0:02:30.3]} 19. f4 {[%clk 0:01:54.9]} 19...
Bc5 {[%clk 0:02:28.1]} 20. Bxc5 {[%clk 0:01:49.2]} 20... Nxc5 {[%clk 0:02:30]}
21. Qc3 {[%clk 0:01:38.5]} 21... Ncxe4 {[%clk 0:02:15.1]} 22. Qxe5+ {[%clk
0:01:25.4]} 22... Qxe5 {[%clk 0:01:45.8]} 23. fxe5 {[%clk 0:01:27.2]} 23... Nd7
{[%clk 0:01:29.7]} 24. e6 {[%clk 0:01:25.1]} 24... Ndc5 {[%clk 0:01:25.3]} 25.
exf7+ {[%clk 0:01:24]} 25... Kxf7 {[%clk 0:01:26.6]} 26. Nxg6 {[%clk 0:01:20]}
26... Rhg8 {[%clk 0:01:20.4]} 27. Ne5+ {[%clk 0:01:17.7]} 27... Ke6 {[%clk
0:01:20]} 28. Ng6 {[%clk 0:01:01.1]} 28... Nxd3+ {[%clk 0:01:13.5]} 29. cxd3
{[%clk 0:01:03]} 29... Nc5 {[%clk 0:01:15]} 30. Nef4+ {[%clk 0:00:59.6]} 30...
Kf6 {[%clk 0:01:13.7]} 31. d4 {[%clk 0:00:57.5]} 31... Nd3+ {[%clk 0:01:09.9]}
32. Nxd3 {[%clk 0:00:52]} 32... Rxg6 {[%clk 0:01:11.1]} 33. Rf1+ {[%clk
0:00:49.7]} 33... Kg5 {[%clk 0:01:04.4]} 34. Ne5 {[%clk 0:00:49.8]} 34... Re6
{[%clk 0:01:02.6]} 35. Kd2 {[%clk 0:00:46]} 35... c5 {[%clk 0:00:56.6]} 36. Nd7
{[%clk 0:00:41.1]} 36... Rbe8 {[%clk 0:00:42.3]} 37. Rxb7 {[%clk 0:00:29.4]}
37... Re2+ {[%clk 0:00:42.1]} 38. Kc1 {[%clk 0:00:29.3]} 38... cxd4 {[%clk
0:00:38.3]} 39. Rxb5+ {[%clk 0:00:30.8]} 39... Kh4 {[%clk 0:00:32.7]} 40. Nf6
{[%clk 0:00:26.3]} 40... Rc8+ {[%clk 0:00:26.4]} 41. Kd1 {[%clk 0:00:24.9]}
41... Rxh2 {[%clk 0:00:24.6]} 42. Rh5+ {[%clk 0:00:24.5]} 42... Kg3 {[%clk
0:00:25.4]} 43. Ne4+ {[%clk 0:00:18.9]} 43... Kg2 {[%clk 0:00:20]} 44. Rf2+
{[%clk 0:00:19.2]} 44... Kg1 {[%clk 0:00:20.7]} 45. Rhxh2 {[%clk 0:00:20.7]}
45... Rg8 {[%clk 0:00:19.2]} 46. Re2 {[%clk 0:00:20.7]} 46... h5 {[%clk
0:00:19.1]} 47. Rhf2 {[%clk 0:00:21.8]} 47... Rg7 {[%clk 0:00:13.7]} 48. Re1#
{[%clk 0:00:21.9]} 1-0

[Event "*** Titled Tuesday Blitz"]
[Site "Chess.com"]
[Date "2019.11.05"]
[Round "1"]
[White "BIG_Pirate"]
[Black "MikaelyanArman"]
[Result "1-0"]
[WhiteElo "2420"]
[BlackElo "2735"]
[TimeControl "180+2"]
[EndTime "13:09:44 PST"]
[Termination "BIG_Pirate won by resignation"]

1. Nf3 {[%clk 0:03:00.4]} 1... Nf6 {[%clk 0:02:58.1]} 2. c4 {[%clk 0:03:01.1]}
2... g6 {[%clk 0:02:58.3]} 3. g3 {[%clk 0:03:01.6]} 3... Bg7 {[%clk 0:02:59.4]}
4. Bg2 {[%clk 0:03:02.9]} 4... O-O {[%clk 0:03:01.2]} 5. O-O {[%clk 0:03:04]}
5... c5 {[%clk 0:03:00.9]} 6. Nc3 {[%clk 0:03:04.2]} 6... Nc6 {[%clk 0:03:01.2]}
7. d3 {[%clk 0:03:04.9]} 7... d6 {[%clk 0:02:58.8]} 8. a3 {[%clk 0:03:05.2]}
8... e5 {[%clk 0:02:49.3]} 9. Bg5 {[%clk 0:03:02.6]} 9... h6 {[%clk 0:02:48.6]}
10. Bxf6 {[%clk 0:03:03.5]} 10... Bxf6 {[%clk 0:02:50.5]} 11. Rb1 {[%clk
0:03:04.4]} 11... a5 {[%clk 0:02:43.3]} 12. Nd5 {[%clk 0:03:04.5]} 12... Bg7
{[%clk 0:02:44.1]} 13. b4 {[%clk 0:03:04.6]} 13... axb4 {[%clk 0:02:03.9]} 14.
axb4 {[%clk 0:03:06.5]} 14... cxb4 {[%clk 0:02:05.8]} 15. Nxb4 {[%clk
0:03:06.6]} 15... Ne7 {[%clk 0:02:04]} 16. Nd2 {[%clk 0:03:03.8]} 16... Qc7
{[%clk 0:02:00]} 17. Ne4 {[%clk 0:02:39.6]} 17... Ra3 {[%clk 0:01:31.1]} 18. Qc1
{[%clk 0:02:31.1]} 18... Ra5 {[%clk 0:01:22.2]} 19. Nc3 {[%clk 0:02:30.6]} 19...
Kh7 {[%clk 0:01:15.1]} 20. Nbd5 {[%clk 0:02:27.6]} 20... Nxd5 {[%clk 0:01:15.8]}
21. Nxd5 {[%clk 0:02:29.5]} 21... Qc5 {[%clk 0:01:09.4]} 22. Qe3 {[%clk
0:02:15.2]} 22... Qxe3 {[%clk 0:01:00.2]} 23. Nxe3 {[%clk 0:02:15.6]} 23... Ra2
{[%clk 0:00:56.2]} 24. Rfe1 {[%clk 0:02:15.2]} 24... Ra7 {[%clk 0:00:49.4]} 25.
Rb5 {[%clk 0:02:05]} 25... f5 {[%clk 0:00:48.5]} 26. Reb1 {[%clk 0:02:04.7]}
26... f4 {[%clk 0:00:41.3]} 27. Nd5 {[%clk 0:02:03.2]} 27... Ra2 {[%clk
0:00:40.8]} 28. Bf3 {[%clk 0:01:57.3]} 28... Rf7 {[%clk 0:00:35.7]} 29. Nc3
{[%clk 0:01:55.7]} 29... Rc2 {[%clk 0:00:27.5]} 30. Ne4 {[%clk 0:01:54.1]} 30...
Bf8 {[%clk 0:00:26.5]} 31. R5b2 {[%clk 0:01:41.8]} 31... Rxb2 {[%clk 0:00:26.5]}
32. Rxb2 {[%clk 0:01:43.7]} 32... g5 {[%clk 0:00:25.1]} 33. Nc3 {[%clk
0:01:44.2]} 33... g4 {[%clk 0:00:22.5]} 34. Bd5 {[%clk 0:01:45]} 34... Rg7
{[%clk 0:00:19.9]} 35. Ne4 {[%clk 0:01:45.5]} 35... f3 {[%clk 0:00:16.4]} 36.
Kf1 {[%clk 0:01:43.1]} 36... fxe2+ {[%clk 0:00:15.8]} 37. Kxe2 {[%clk 0:01:45]}
37... h5 {[%clk 0:00:12.6]} 38. Rb6 {[%clk 0:01:45]} 38... Bf5 {[%clk
0:00:05.6]} 39. Nxd6 {[%clk 0:01:40.6]} 39... Bxd6 {[%clk 0:00:04.7]} 40. Rxd6
{[%clk 0:01:40.6]} 40... Re7 {[%clk 0:00:05.6]} 41. Ke3 {[%clk 0:01:39.9]} 41...
Kg7 {[%clk 0:00:06.3]} 42. Rb6 {[%clk 0:01:40.2]} 42... Bc8 {[%clk 0:00:07.2]}
43. Be4 {[%clk 0:01:38.5]} 43... Rf7 {[%clk 0:00:07.4]} 44. Rg6+ {[%clk
0:01:38.1]} 44... Kf8 {[%clk 0:00:08.4]} 45. Rh6 {[%clk 0:01:35.7]} 45... Bf5
{[%clk 0:00:09.3]} 46. Bd5 {[%clk 0:01:34.5]} 46... Re7 {[%clk 0:00:04.7]} 47.
Rf6+ {[%clk 0:01:35.1]} 47... Kg7 {[%clk 0:00:05]} 48. Rxf5 {[%clk 0:01:36.5]}
48... h4 {[%clk 0:00:02.7]} 49. Rg5+ {[%clk 0:01:35.3]} 49... Kf6 {[%clk
0:00:03.7]} 50. Rxg4 {[%clk 0:01:37.2]} 50... hxg3 {[%clk 0:00:04.6]} 51. hxg3
{[%clk 0:01:37.4]} 51... Rh7 {[%clk 0:00:06.5]} 52. Rh4 {[%clk 0:01:35.5]} 52...
Rg7 {[%clk 0:00:07.2]} 53. Rh6+ {[%clk 0:01:35.2]} 53... Kf5 {[%clk 0:00:08.2]}
54. Rb6 {[%clk 0:01:29.9]} 54... Kg4 {[%clk 0:00:08.3]} 55. Rxb7 {[%clk
0:01:26.2]} 55... Rg6 {[%clk 0:00:09.7]} 56. Be4 {[%clk 0:01:20]} 56... Rg5
{[%clk 0:00:09]} 57. c5 {[%clk 0:01:16.7]} 57... Rg8 {[%clk 0:00:09.5]} 58. c6
{[%clk 0:01:15.9]} 58... Rc8 {[%clk 0:00:09.7]} 59. Rg7+ {[%clk 0:01:14.2]}
59... Kh5 {[%clk 0:00:09.4]} 60. Re7 {[%clk 0:01:11.8]} 60... Kg4 {[%clk
0:00:08.9]} 61. Rxe5 {[%clk 0:01:11.4]} 61... Rf8 {[%clk 0:00:10.1]} 62. c7
{[%clk 0:01:10.7]} 62... Kh3 {[%clk 0:00:09.7]} 63. c8=Q+ {[%clk 0:01:10.5]}
63... Rxc8 {[%clk 0:00:09.7]} 64. Bf5+ {[%clk 0:01:11.5]} 64... Kg2 {[%clk
0:00:11.6]} 1-0

[Event "*** Titled Tuesday Blitz"]
[Site "Chess.com"]
[Date "2019.11.05"]
[Round "1"]
[White "LastHeroJr"]
[Black "ferdipy"]
[Result "1-0"]
[WhiteElo "2599"]
[BlackElo "2203"]
[TimeControl "180+2"]
[EndTime "13:09:52 PST"]
[Termination "LastHeroJr won by resignation"]

1. e4 {[%clk 0:03:01.9]} 1... e6 {[%clk 0:02:51.4]} 2. d4 {[%clk 0:03:02.2]}
2... d5 {[%clk 0:02:52]} 3. Nd2 {[%clk 0:03:03.3]} 3... Nf6 {[%clk 0:02:50.8]}
4. e5 {[%clk 0:03:04]} 4... Nfd7 {[%clk 0:02:50.9]} 5. Bd3 {[%clk 0:03:04.9]}
5... c5 {[%clk 0:02:52.2]} 6. c3 {[%clk 0:03:06.2]} 6... Nc6 {[%clk 0:02:53.5]}
7. Ne2 {[%clk 0:03:06.9]} 7... cxd4 {[%clk 0:02:55.2]} 8. cxd4 {[%clk
0:03:08.8]} 8... f6 {[%clk 0:02:56.3]} 9. exf6 {[%clk 0:03:10.7]} 9... Nxf6
{[%clk 0:02:57.6]} 10. Nf3 {[%clk 0:03:07.6]} 10... Bd6 {[%clk 0:02:58.9]} 11.
O-O {[%clk 0:03:08]} 11... Qc7 {[%clk 0:02:59.6]} 12. Nc3 {[%clk 0:03:06.8]}
12... a6 {[%clk 0:02:59.6]} 13. Bd2 {[%clk 0:03:04.3]} 13... O-O {[%clk
0:02:59.6]} 14. Rc1 {[%clk 0:03:05]} 14... Qf7 {[%clk 0:02:49.8]} 15. Re1 {[%clk
0:02:56.1]} 15... Qh5 {[%clk 0:02:43.3]} 16. Be2 {[%clk 0:02:42.3]} 16... Ng4
{[%clk 0:02:34.9]} 17. h3 {[%clk 0:02:39.3]} 17... Nf6 {[%clk 0:02:24.1]} 18.
Ne5 {[%clk 0:02:29.7]} 18... Qe8 {[%clk 0:02:24.7]} 19. Nxc6 {[%clk 0:02:24.7]}
19... bxc6 {[%clk 0:02:25.7]} 20. Na4 {[%clk 0:02:25.5]} 20... Ne4 {[%clk
0:02:23.2]} 21. Be3 {[%clk 0:02:26.1]} 21... e5 {[%clk 0:02:18.3]} 22. Nb6
{[%clk 0:02:12.6]} 22... Rb8 {[%clk 0:02:14.8]} 23. Nxc8 {[%clk 0:02:13.5]}
23... Qxc8 {[%clk 0:02:10.1]} 24. Qc2 {[%clk 0:02:07.4]} 24... exd4 {[%clk
0:01:30.6]} 25. Bxd4 {[%clk 0:02:08.1]} 25... c5 {[%clk 0:01:31.9]} 26. Be3
{[%clk 0:02:05.7]} 26... Qf5 {[%clk 0:01:13.9]} 27. Bd3 {[%clk 0:01:58.2]} 27...
Rbe8 {[%clk 0:01:09.1]} 28. Rcd1 {[%clk 0:01:23.9]} 28... Qe5 {[%clk 0:00:59.7]}
29. f4 {[%clk 0:01:22.9]} 29... Rxf4 {[%clk 0:00:53.3]} 30. Bxf4 {[%clk
0:01:18.5]} 30... Qxf4 {[%clk 0:00:55.2]} 31. g3 {[%clk 0:01:20]} 31... Qxg3+
{[%clk 0:00:41.4]} 32. Qg2 {[%clk 0:01:20.8]} 32... Qe5 {[%clk 0:00:22.5]} 33.
Bxa6 {[%clk 0:01:04.5]} 33... c4 {[%clk 0:00:21.4]} 34. Bb7 {[%clk 0:01:03.3]}
34... Bc5+ {[%clk 0:00:19.8]} 35. Kh1 {[%clk 0:01:00.8]} 35... Ng3+ {[%clk
0:00:19.1]} 36. Qxg3 {[%clk 0:00:54.2]} 36... Qxg3 {[%clk 0:00:20.6]} 37. Bxd5+
{[%clk 0:00:11]} 37... Kf8 {[%clk 0:00:21.3]} 38. Rf1+ {[%clk 0:00:08.6]} 38...
Ke7 {[%clk 0:00:22.1]} 39. Rf3 {[%clk 0:00:09.7]} 39... Qg5 {[%clk 0:00:15]} 40.
Rf7+ {[%clk 0:00:10.3]} 40... Kd6 {[%clk 0:00:10.4]} 41. Bg2+ {[%clk 0:00:10.8]}
41... Ke5 {[%clk 0:00:10.9]} 42. Rd5+ {[%clk 0:00:10.8]} 42... Ke6 {[%clk
0:00:08.9]} 43. Rxg5 {[%clk 0:00:11.5]} 43... Kxf7 {[%clk 0:00:09.7]} 44. Rxc5
{[%clk 0:00:12.6]} 44... Re1+ {[%clk 0:00:10.2]} 45. Kh2 {[%clk 0:00:14.1]}
45... Re2 {[%clk 0:00:11]} 46. Rxc4 {[%clk 0:00:14.9]} 46... Rxb2 {[%clk
0:00:12.5]} 47. a4 {[%clk 0:00:16.5]} 47... Ra2 {[%clk 0:00:13.7]} 48. Kg3
{[%clk 0:00:17.4]} 48... g5 {[%clk 0:00:14.4]} 49. Bf3 {[%clk 0:00:18.7]} 49...
h5 {[%clk 0:00:15.9]} 50. Rc6 {[%clk 0:00:19.1]} 50... h4+ {[%clk 0:00:16.4]}
51. Kg4 {[%clk 0:00:19.6]} 51... Rxa4+ {[%clk 0:00:18]} 52. Kxg5 {[%clk
0:00:20.7]} 52... Ke7 {[%clk 0:00:19.3]} 53. Bg4 {[%clk 0:00:21.2]} 53... Kf7
{[%clk 0:00:20.3]} 54. Kxh4 {[%clk 0:00:22.2]} 54... Kg7 {[%clk 0:00:22]} 55.
Kg5 {[%clk 0:00:23.4]} 55... Kf7 {[%clk 0:00:22.4]} 56. h4 {[%clk 0:00:24.5]}
56... Ke7 {[%clk 0:00:23.4]} 57. h5 {[%clk 0:00:25.4]} 57... Ra5+ {[%clk
0:00:24.9]} 58. Bf5 {[%clk 0:00:26.5]} 58... Kf7 {[%clk 0:00:24.9]} 59. h6
{[%clk 0:00:27.6]} 59... Kg8 {[%clk 0:00:25.4]} 60. Rc8+ {[%clk 0:00:26.3]}
60... Kf7 {[%clk 0:00:27.3]} 61. h7 {[%clk 0:00:27]} 61... Ra1 {[%clk
0:00:26.9]} 62. h8=Q {[%clk 0:00:26.7]} 62... Rg1+ {[%clk 0:00:27.5]} 63. Bg4
{[%clk 0:00:27.8]} 1-0

[Event "*** Titled Tuesday Blitz"]
[Site "Chess.com"]
[Date "2019.11.05"]
[Round "1"]
[White "mortngabriel"]
[Black "ChessQueen"]
[Result "0-1"]
[WhiteElo "2304"]
[BlackElo "2668"]
[TimeControl "180+2"]
[EndTime "13:09:55 PST"]
[Termination "ChessQueen won by checkmate"]

1. e4 {[%clk 0:03:00.6]} 1... e5 {[%clk 0:02:59.4]} 2. Nf3 {[%clk 0:02:58.6]}
2... Nc6 {[%clk 0:03:00.2]} 3. Bb5 {[%clk 0:02:59]} 3... a6 {[%clk 0:03:00.3]}
4. Ba4 {[%clk 0:03:00.5]} 4... Nf6 {[%clk 0:03:01.2]} 5. O-O {[%clk 0:03:00]}
5... Be7 {[%clk 0:03:02.5]} 6. Re1 {[%clk 0:03:00.4]} 6... b5 {[%clk 0:03:03.7]}
7. Bb3 {[%clk 0:03:02.1]} 7... d6 {[%clk 0:03:05]} 8. c3 {[%clk 0:03:02.4]} 8...
O-O {[%clk 0:03:03.2]} 9. h3 {[%clk 0:03:03.5]} 9... h6 {[%clk 0:03:02.5]} 10.
d4 {[%clk 0:03:01]} 10... Re8 {[%clk 0:03:02.5]} 11. Nbd2 {[%clk 0:02:58]} 11...
Bb7 {[%clk 0:03:03.1]} 12. d5 {[%clk 0:02:53.9]} 12... Na5 {[%clk 0:02:50.8]}
13. Bc2 {[%clk 0:02:54.2]} 13... c6 {[%clk 0:02:52.3]} 14. b4 {[%clk 0:02:52]}
14... Nc4 {[%clk 0:02:53.2]} 15. Nxc4 {[%clk 0:02:53]} 15... bxc4 {[%clk
0:02:55.1]} 16. dxc6 {[%clk 0:02:53.3]} 16... Bxc6 {[%clk 0:02:56.3]} 17. a4
{[%clk 0:02:47.3]} 17... Qc7 {[%clk 0:02:53.8]} 18. Qe2 {[%clk 0:02:33.5]} 18...
Bb7 {[%clk 0:02:31.6]} 19. Nd2 {[%clk 0:02:28.4]} 19... d5 {[%clk 0:02:30.5]}
20. exd5 {[%clk 0:02:18.4]} 20... Nxd5 {[%clk 0:02:16.9]} 21. Qxc4 {[%clk
0:01:57.7]} 21... Qxc4 {[%clk 0:02:17.3]} 22. Nxc4 {[%clk 0:01:58.9]} 22... Nxc3
{[%clk 0:02:19.2]} 23. Rxe5 {[%clk 0:01:05.1]} 23... Bxb4 {[%clk 0:02:04]} 24.
Ba3 {[%clk 0:00:56.5]} 24... Bxa3 {[%clk 0:01:50.6]} 25. Rxa3 {[%clk 0:00:53.7]}
25... Ne2+ {[%clk 0:01:51]} 26. Kh2 {[%clk 0:00:45.5]} 26... Rxe5 {[%clk
0:01:33.2]} 27. Nxe5 {[%clk 0:00:45.4]} 27... Re8 {[%clk 0:01:34.2]} 28. Re3
{[%clk 0:00:40.9]} 28... Nd4 {[%clk 0:01:31.1]} 29. Be4 {[%clk 0:00:35.8]} 29...
Bxe4 {[%clk 0:01:29.2]} 30. Rxe4 {[%clk 0:00:36.9]} 30... Nc6 {[%clk 0:01:26.9]}
31. f4 {[%clk 0:00:29.5]} 31... f6 {[%clk 0:01:28.2]} 32. Rc4 {[%clk 0:00:30.5]}
32... Nxe5 {[%clk 0:01:29.4]} 33. fxe5 {[%clk 0:00:31.6]} 33... Rxe5 {[%clk
0:01:31]} 34. h4 {[%clk 0:00:27.4]} 34... Kf7 {[%clk 0:01:28.6]} 35. Rc7+ {[%clk
0:00:25.5]} 35... Kg6 {[%clk 0:01:27.9]} 36. Rc6 {[%clk 0:00:24.2]} 36... a5
{[%clk 0:01:16.3]} 37. Rc4 {[%clk 0:00:20.7]} 37... h5 {[%clk 0:01:16.4]} 38. g3
{[%clk 0:00:20]} 38... Re2+ {[%clk 0:01:16.5]} 39. Kh3 {[%clk 0:00:21.5]} 39...
Ra2 {[%clk 0:01:18.4]} 40. Rd4 {[%clk 0:00:22.4]} 40... Kf7 {[%clk 0:01:09.2]}
41. Rc4 {[%clk 0:00:22.4]} 41... Ke6 {[%clk 0:01:05.3]} 42. Rc5 {[%clk
0:00:22.7]} 42... Rxa4 {[%clk 0:01:05.5]} 43. Rxh5 {[%clk 0:00:23.3]} 43... Ra1
{[%clk 0:01:00.6]} 44. Rh7 {[%clk 0:00:21.5]} 44... Kf7 {[%clk 0:00:59.1]} 45.
Rh8 {[%clk 0:00:22.2]} 45... a4 {[%clk 0:00:58.8]} 46. Ra8 {[%clk 0:00:24.1]}
46... a3 {[%clk 0:00:58.2]} 47. Ra7+ {[%clk 0:00:22.4]} 47... Ke6 {[%clk
0:00:59.2]} 48. Kg4 {[%clk 0:00:18.5]} 48... g6 {[%clk 0:00:58.2]} 49. Ra6+
{[%clk 0:00:14.1]} 49... Ke5 {[%clk 0:00:59.2]} 50. Ra5+ {[%clk 0:00:14.7]}
50... Kd4 {[%clk 0:01:00.4]} 51. Ra6 {[%clk 0:00:15.9]} 51... Ke5 {[%clk
0:00:50.2]} 52. Ra5+ {[%clk 0:00:16.7]} 52... Ke4 {[%clk 0:00:44.3]} 53. Ra6
{[%clk 0:00:14.4]} 53... f5+ {[%clk 0:00:41.8]} 54. Kg5 {[%clk 0:00:15.6]} 54...
a2 {[%clk 0:00:36.8]} 55. Ra4+ {[%clk 0:00:11.8]} 55... Kf3 {[%clk 0:00:33.5]}
56. Kxg6 {[%clk 0:00:10.8]} 56... Kxg3 {[%clk 0:00:31.9]} 57. Kxf5 {[%clk
0:00:11.4]} 57... Rf1+ {[%clk 0:00:32.3]} 58. Kg6 {[%clk 0:00:11.9]} 58... a1=Q
{[%clk 0:00:33.6]} 59. Rxa1 {[%clk 0:00:12.9]} 59... Rxa1 {[%clk 0:00:34.8]} 60.
h5 {[%clk 0:00:14.8]} 60... Kg4 {[%clk 0:00:32.7]} 61. h6 {[%clk 0:00:16]} 61...
Ra6+ {[%clk 0:00:33.9]} 62. Kg7 {[%clk 0:00:17]} 62... Kg5 {[%clk 0:00:35.4]}
63. h7 {[%clk 0:00:18.3]} 63... Ra7+ {[%clk 0:00:36.9]} 64. Kh8 {[%clk
0:00:15.9]} 64... Kg6 {[%clk 0:00:37.3]} 65. Kg8 {[%clk 0:00:15.4]} 65... Ra8#
{[%clk 0:00:38.5]} 0-1